bitfinex/quotes_BTCUSD_20240617
["timestamp","ask_amount","ask_price","bid_price","bid_amount"]
[1718642782395,0.00185,65942.0,65941.0,0.009]
[1718642782396,0.00285,65942.0,65941.0,0.009]
[1718642782600,0.00285,65942.0,65941.0,0.463951]
[1718642782982,0.00285,65942.0,65941.0,0.009]
[1718642783384,0.00285,65942.0,65941.0,0.16065]
[1718642783584,0.00285,65942.0,65941.0,0.009]
[1718642784798,0.00285,65942.0,65941.0,0.332301]
[1718642785003,0.00285,65942.0,65941.0,0.767252]
[1718642785211,0.00285,65942.0,65941.0,0.463951]
[1718642785866,0.20558865,65953.0,65941.0,0.635602]
[1718642786116,0.151625,65952.0,65944.0,0.454929]
[1718642786525,0.2009,65959.0,65941.0,0.332301]
[1718642786526,0.0707,65958.0,65952.0,0.30325]
[1718642786727,0.0707,65958.0,65956.0,0.151615]
[1718642786930,0.0707,65958.0,65954.0,0.151619]
[1718642787100,0.001,65953.0,65952.0,0.454873]
[1718642787305,0.001,65953.0,65951.0,0.151627]
[1718642787509,0.0707,65958.0,65949.0,0.056]
[1718642787510,0.151615,65957.0,65949.0,0.056]
[1718642787722,0.151615,65957.0,65952.0,0.001]
[1718642788097,0.151615,65957.0,65950.0,0.151629]
[1718642788534,0.151615,65957.0,65949.0,0.359264]
[1718642788535,0.001,65953.0,65949.0,0.151631]
[1718642788739,0.001,65953.0,65947.0,0.151634]
[1718642788899,0.001,65953.0,65948.0,0.151634]
[1718642789267,0.001,65953.0,65946.0,0.303275]
[1718642789478,0.007,65953.0,65952.0,0.001]
[1718642789675,0.007,65953.0,65949.0,0.151631]
[1718642790107,0.008,65953.0,65949.0,0.151631]
[1718642790309,0.151616,65956.0,65949.0,0.151631]
[1718642790428,0.008,65957.0,65947.0,0.02]
[1718642790634,0.007,65953.0,65952.0,0.001]
[1718642790838,0.007,65953.0,65950.0,0.303258]
[1718642791036,0.007,65953.0,65952.0,0.520275]
[1718642791265,0.007,65953.0,65952.0,1.182775]
[1718642791468,0.015,65953.0,65952.0,0.859525]
[1718642792005,0.01,65953.0,65952.0,0.859525]
[1718642792446,0.01,65953.0,65952.0,1.182775]
[1718642793285,0.00085,65961.0,65960.0,0.151607]
[1718642793693,0.00085,65961.0,65952.0,0.1024]
[1718642793898,0.00085,65961.0,65958.0,0.151609]
[1718642794138,0.00085,65961.0,65955.0,0.303234]
[1718642794374,0.00085,65961.0,65956.0,0.151614]
[1718642794596,0.00085,65961.0,65953.0,0.303243]
[1718642794814,0.00985,65961.0,65960.0,0.001]
[1718642795035,0.00985,65961.0,65957.0,0.151613]
[1718642795250,0.01985,65961.0,65957.0,0.151613]
[1718642795870,0.00985,65961.0,65957.0,0.151613]
[1718642796242,0.00985,65961.0,65958.0,0.001]
[1718642796243,0.02385,65961.0,65958.0,0.001]
[1718642796446,0.02385,65961.0,65960.0,0.151607]
[1718642796650,0.00785,65961.0,65960.0,0.151607]
[1718642796848,0.00785,65961.0,65960.0,1.081249]
[1718642797051,0.00785,65961.0,65960.0,0.454821]
[1718642797052,0.01285,65961.0,65960.0,0.454821]
[1718642797255,0.00785,65961.0,65960.0,0.454821]
[1718642798044,0.00724,65967.0,65960.0,0.02]
[1718642798371,0.00724,65967.0,65962.0,0.151601]
[1718642798567,0.00724,65967.0,65963.0,0.151599]
[1718642798803,0.00724,65967.0,65961.0,0.303206]
[1718642798804,0.00724,65967.0,65962.0,0.303203]
[1718642799090,0.00724,65967.0,65963.0,0.151599]
[1718642799505,0.00724,65967.0,65962.0,0.303204]
[1718642799956,0.00724,65967.0,65963.0,0.151599]
[1718642800366,0.00724,65967.0,65963.0,0.161599]
[1718642800575,0.00724,65967.0,65964.0,0.303195]
[1718642800757,0.00724,65967.0,65965.0,0.151595]
[1718642801010,0.00724,65967.0,65964.0,0.151597]
[1718642801207,0.00824,65967.0,65963.0,0.1566]
[1718642801622,0.00724,65967.0,65963.0,0.1516]
[1718642802037,0.00724,65967.0,65965.0,0.002]
[1718642802868,0.00724,65967.0,65964.0,0.151597]
[1718642803291,0.00724,65967.0,65962.0,0.303204]
[1718642803495,0.00724,65967.0,65964.0,0.151597]
[1718642803901,0.00724,65967.0,65964.0,0.156597]
[1718642804494,0.151594,65966.0,65964.0,0.005]
[1718642804846,0.151595,65965.0,65964.0,0.005]
[1718642805071,0.310422,65967.0,65964.0,0.005]
[1718642805072,0.00724,65967.0,65964.0,0.008]
[1718642805616,0.00724,65967.0,65963.0,0.151598]
[1718642805822,0.00724,65967.0,65964.0,0.003]
[1718642806231,0.303191,65965.0,65964.0,0.003]
[1718642806451,0.00724,65967.0,65964.0,0.154596]
[1718642806653,0.00724,65967.0,65966.0,0.757965]
[1718642807319,0.00724,65967.0,65966.0,0.454779]
[1718642807529,0.00724,65967.0,65966.0,0.757965]
[1718642807735,0.00724,65967.0,65966.0,0.777965]
[1718642807946,0.00724,65967.0,65966.0,1.081151]
[1718642808160,0.00724,65967.0,65966.0,1.205651]
[1718642808373,0.00724,65967.0,65966.0,1.89093035]
[1718642808587,0.00724,65967.0,65966.0,1.99193035]
[1718642809292,0.00724,65967.0,65966.0,1.99093035]
[1718642809500,0.00724,65967.0,65966.0,3.49295294]
[1718642810147,0.00724,65967.0,65966.0,3.49095294]
[1718642810356,0.00824,65967.0,65966.0,3.43994861]
[1718642810819,0.00924,65967.0,65966.0,3.53324194]
[1718642811444,0.00924,65967.0,65966.0,3.47426185]
[1718642811651,0.00824,65967.0,65966.0,3.52924296]
[1718642811851,0.00824,65967.0,65966.0,3.47026185]
[1718642812134,0.00924,65967.0,65966.0,3.47426185]
[1718642812282,0.00924,65967.0,65966.0,3.37226185]
[1718642812494,0.00724,65967.0,65966.0,3.41927494]
[1718642812921,0.00724,65967.0,65966.0,3.43327494]
[1718642813141,0.00724,65967.0,65966.0,3.52127494]
[1718642813576,0.00724,65967.0,65966.0,3.46226185]
[1718642813788,0.00724,65967.0,65966.0,3.52130706]
[1718642814214,0.00724,65967.0,65966.0,3.53530706]
[1718642814418,0.00824,65967.0,65966.0,3.53230706]
[1718642814825,0.00724,65967.0,65966.0,3.52130706]
[1718642815297,0.0899,65997.0,65980.0,0.122]
[1718642815503,0.0899,65997.0,65980.0,0.798583]
[1718642815706,0.0899,65997.0,65980.0,1.809949]
[1718642815917,0.0899,65997.0,65980.0,1.707949]
[1718642816343,0.0899,65997.0,65980.0,1.82875167]
[1718642816547,0.0899,65997.0,65980.0,2.30387367]
[1718642816780,0.00853,66002.0,65980.0,2.03675167]
[1718642816992,0.1641,65999.0,65980.0,2.264571]
[1718642817198,0.1641,65999.0,65980.0,2.39946517]
[1718642817409,0.1641,65999.0,65980.0,2.49456791]
[1718642817789,0.1641,65999.0,65980.0,2.20544591]
[1718642818007,0.1641,65999.0,65980.0,2.14634317]
[1718642818422,0.00853,66002.0,65980.0,2.14634317]
[1718642818423,0.00954,65981.0,65980.0,2.46046517]
[1718642818671,1e-06,65981.0,65980.0,2.51964886]
[1718642818884,1e-06,65981.0,65980.0,2.82276466]
[1718642819094,1e-06,65981.0,65980.0,2.80876466]
[1718642819540,0.00853,66002.0,65999.0,1.136619]
[1718642819756,0.00853,66002.0,65999.0,1.337519]
[1718642819965,0.00853,66002.0,65999.0,1.663553]
[1718642820174,0.00853,66002.0,65999.0,1.037485]
[1718642820395,0.00853,66002.0,65999.0,0.734451]
[1718642820611,0.00853,66002.0,65999.0,1.057485]
[1718642820811,0.00853,66002.0,65999.0,1.360519]
[1718642821020,0.00853,66002.0,65999.0,1.363519]
[1718642821230,0.00853,66002.0,65999.0,0.026]
[1718642821443,1.15757931,66000.0,65999.0,0.003]
[1718642821654,1.15757931,66000.0,65999.0,0.457551]
[1718642821865,1.08857931,66000.0,65999.0,0.757585]
[1718642822074,1.00467931,66000.0,65999.0,1.060619]
[1718642822309,1.00467931,66000.0,65999.0,1.115619]
[1718642822310,1.00567931,66000.0,65999.0,1.115619]
[1718642822510,1.00567931,66000.0,65999.0,1.099619]
[1718642822723,1.00567931,66000.0,65999.0,1.095619]
[1718642822932,1.00567931,66000.0,65999.0,0.186517]
[1718642823148,1.00567931,66000.0,65999.0,0.019]
[1718642823368,1.22449431,66000.0,65999.0,0.019]
[1718642823578,1.62222431,66000.0,65999.0,0.012]
[1718642823792,1.62222431,66000.0,65999.0,0.165517]
[1718642823793,1.16667931,66000.0,65999.0,0.165517]
[1718642824011,1.16667931,66000.0,65999.0,0.014]
[1718642824211,1.00467931,66000.0,65999.0,0.458551]
[1718642824874,1.00467931,66000.0,65999.0,0.027]
[1718642825285,1.00467931,66000.0,65999.0,0.151517]
[1718642825488,1.00467931,66000.0,65999.0,0.468551]
[1718642825723,1.00467931,66000.0,65999.0,0.004]
[1718642826191,1.00467931,66000.0,65999.0,0.466551]
[1718642826399,1.00467931,66000.0,65999.0,0.804585]
[1718642826615,1.00467931,66000.0,65999.0,1.107619]
[1718642826832,1.00467931,66000.0,65999.0,1.118619]
[1718642827047,1.00467931,66000.0,65999.0,1.114619]
[1718642827048,0.97467931,66000.0,65999.0,1.114619]
[1718642827280,0.97467931,66000.0,65999.0,1.094619]
[1718642827481,0.97467931,66000.0,65999.0,0.799585]
[1718642827689,0.97467931,66000.0,65999.0,0.170517]
[1718642827906,1.06627931,66000.0,65999.0,0.019]
[1718642828128,1.59012431,66000.0,65999.0,0.019]
[1718642828347,1.28709431,66000.0,65999.0,0.07963]
[1718642828564,1.13557931,66000.0,65999.0,0.382664]
[1718642828774,1.13557931,66000.0,65999.0,0.534181]
[1718642829206,1.13557931,66000.0,65999.0,0.826215]
[1718642829432,1.13557931,66000.0,65999.0,0.220147]
[1718642829659,1.13557931,66000.0,65999.0,0.232147]
[1718642829886,1.13557931,66000.0,65999.0,0.523181]
[1718642830110,1.13557931,66000.0,65999.0,0.07763]
[1718642830490,1.13557931,66000.0,65999.0,0.06863]
[1718642830657,1.13557931,66000.0,65999.0,0.07763]
[1718642830859,1.59012431,66000.0,65999.0,0.07763]
[1718642831041,1.13557931,66000.0,65999.0,0.07763]
[1718642831655,1.13557931,66000.0,65999.0,0.06863]
[1718642832025,1.13557931,66000.0,65999.0,0.06063]
[1718642832232,1.13557931,66000.0,65999.0,1.121249]
[1718642832233,0.97467931,66000.0,65999.0,1.121249]
[1718642832464,0.97467931,66000.0,65999.0,1.467283]
[1718642833027,0.97467931,66000.0,65999.0,1.151249]
[1718642833230,0.97467931,66000.0,65999.0,1.474283]
[1718642833440,0.97467931,66000.0,65999.0,1.467283]
[1718642833711,0.97467931,66000.0,65999.0,1.381249]
[1718642833869,0.97467931,66000.0,65999.0,1.500349]
[1718642834035,0.97467931,66000.0,65999.0,1.800383]
[1718642834452,0.97467931,66000.0,65999.0,1.511349]
[1718642834669,0.97467931,66000.0,65999.0,1.497349]
[1718642834878,0.97467931,66000.0,65999.0,1.511349]
[1718642835084,0.97467931,66000.0,65999.0,1.814383]
[1718642835487,0.97467931,66000.0,65999.0,1.966383]
[1718642835720,0.97467931,66000.0,65999.0,1.68333664]
[1718642835921,0.97467931,66000.0,65999.0,1.561349]
[1718642836147,0.97467931,66000.0,65999.0,1.6827471]
[1718642836513,0.97467931,66000.0,65999.0,1.9857811]
[1718642836722,0.97467931,66000.0,65999.0,2.0877811]
[1718642836930,0.97467931,66000.0,65999.0,2.54998381]
[1718642837137,0.97467931,66000.0,65999.0,2.24694981]
[1718642837352,0.97467931,66000.0,65999.0,2.27731981]
[1718642837563,0.97467931,66000.0,65999.0,2.58035381]
[1718642837763,0.97467931,66000.0,65999.0,2.27731981]
[1718642838141,0.97467931,66000.0,65999.0,2.55235381]
[1718642838350,0.97467931,66000.0,65999.0,2.24931981]
[1718642838557,0.97467931,66000.0,65999.0,2.26331981]
[1718642839647,0.97467931,66000.0,65999.0,2.58035381]
[1718642839844,0.97467931,66000.0,65999.0,2.27731981]
[1718642840922,0.97467931,66000.0,65999.0,2.17531981]
[1718642841122,0.97467931,66000.0,65999.0,2.37621981]
[1718642841341,0.97467931,66000.0,65999.0,2.47821981]
[1718642843916,0.97467931,66000.0,65999.0,2.07318581]
[1718642844336,0.97467931,66000.0,65999.0,2.02318581]
[1718642844552,0.97467931,66000.0,65999.0,1.87371581]
[1718642844773,0.97467931,66000.0,65999.0,1.97571581]
[1718642844988,0.97467931,66000.0,65999.0,2.66215381]
[1718642845236,0.97467931,66000.0,65999.0,2.35911981]
[1718642846305,0.97467931,66000.0,65999.0,2.76745381]
[1718642846520,0.97467931,66000.0,65999.0,2.52821981]
[1718642846734,0.97467931,66000.0,65999.0,2.52794874]
[1718642847152,0.7150811,66000.0,65999.0,2.52785284]
[1718642848213,0.7150811,66000.0,65999.0,2.83088684]
[1718642848647,0.7150811,66000.0,65999.0,1.69944884]
[1718642848891,0.7150811,66000.0,65999.0,1.84570211]
[1718642849111,0.7150811,66000.0,65999.0,1.96480211]
[1718642849359,0.7150811,66000.0,65999.0,3.07087011]
[1718642849605,0.7150811,66000.0,65999.0,2.91269962]
[1718642849833,0.64121011,66000.0,65999.0,2.96606962]
[1718642850061,0.60221011,66000.0,65999.0,3.26910362]
[1718642850309,0.60221011,66000.0,65999.0,3.35546086]
[1718642850538,0.60221011,66000.0,65999.0,3.32746086]
[1718642850783,0.60221011,66000.0,65999.0,3.35546086]
[1718642851232,0.60221011,66000.0,65999.0,3.32746086]
[1718642851674,0.60221011,66000.0,65999.0,3.34146086]
[1718642851911,0.49121011,66000.0,65999.0,3.41494789]
[1718642852179,0.45421011,66000.0,65999.0,3.42894789]
[1718642852423,0.45421011,66000.0,65999.0,4.92894789]
[1718642852988,0.45421011,66000.0,65999.0,4.85546086]
[1718642853256,0.45421011,66000.0,65999.0,4.76891297]
[1718642853510,0.40881011,66000.0,65999.0,4.76891297]
[1718642853760,0.40881011,66000.0,65999.0,4.74091297]
[1718642854003,0.00853,66033.0,66018.0,0.372]
[1718642854217,0.00853,66033.0,66032.0,0.27]
[1718642854443,0.04517842,66068.0,66056.0,0.30277]
[1718642854656,0.31414211,66065.0,66049.0,0.05]
[1718642854934,0.1604,66069.0,66054.0,0.2009]
[1718642855164,0.1604,66069.0,66063.0,0.151369]
[1718642855378,0.1604,66069.0,66054.0,0.2009]
[1718642855379,0.0861,66069.0,66054.0,0.2009]
[1718642855597,0.151374,66062.0,66055.0,0.023]
[1718642855797,0.151374,66062.0,66046.0,0.1]
[1718642855798,0.0917,66061.0,66046.0,0.1]
[1718642855999,0.0917,66061.0,66044.0,0.22]
[1718642856000,0.0917,66061.0,66053.0,0.151392]
[1718642856200,0.0069064,66060.0,66054.0,0.151389]
[1718642856421,0.151387,66056.0,66047.0,0.174406]
[1718642856639,0.0069064,66060.0,66056.0,0.302769]
[1718642856847,0.0917,66061.0,66058.0,0.151379]
[1718642857057,0.0917,66061.0,66047.0,0.023]
[1718642857058,0.0917,66061.0,66049.0,0.014]
[1718642857496,0.0917,66061.0,66054.0,0.013]
[1718642857712,0.15139,66055.0,66047.0,0.174406]
[1718642857935,0.151391,66054.0,66047.0,0.188406]
[1718642858165,0.151405,66048.0,66047.0,0.014]
[1718642858381,0.454215,66048.0,66047.0,0.014]
[1718642858616,0.1629,66053.0,66040.0,0.302846]
[1718642858846,0.4542,66050.0,66049.0,0.014]
[1718642859084,0.757,66050.0,66049.0,0.014]
[1718642859298,0.1629,66053.0,66049.0,0.014]
[1718642859745,0.151397,66052.0,66049.0,0.014]
[1718642859958,0.151396,66052.0,66049.0,0.014]
[1718642860167,0.1629,66053.0,66049.0,0.014]
[1718642860393,0.1629,66053.0,66052.0,0.151395]
[1718642860614,0.1629,66053.0,66052.0,0.454186]
[1718642860834,0.1629,66053.0,66052.0,0.756977]
[1718642861260,0.1629,66053.0,66049.0,0.008]
[1718642861466,0.151396,66052.0,66049.0,0.008]
[1718642861686,0.151396,66052.0,66049.0,0.014]
[1718642861903,0.1629,66053.0,66049.0,0.014]
[1718642861904,0.1514,66050.0,66049.0,0.014]
[1718642862072,0.4542,66050.0,66049.0,0.014]
[1718642862334,0.1629,66053.0,66049.0,0.014]
[1718642862551,0.151397,66052.0,66049.0,0.014]
[1718642862990,0.1629,66053.0,66041.0,0.302841]
[1718642863208,0.1629,66053.0,66035.0,0.02]
[1718642863418,0.1629,66053.0,66049.0,0.014]
[1718642863642,0.1629,66053.0,66049.0,0.316803]
[1718642863859,0.1629,66053.0,66051.0,0.151397]
[1718642864074,0.1629,66053.0,66048.0,0.151402]
[1718642864349,0.00763512,66052.0,66049.0,0.014]
[1718642864549,0.00763512,66052.0,66044.0,0.302824]
[1718642864550,0.00763512,66052.0,66046.0,0.151408]
[1718642864697,0.00763512,66052.0,66047.0,0.302813]
[1718642864901,0.00763512,66052.0,66049.0,0.166402]
[1718642865130,0.1629,66053.0,66049.0,0.308801]
[1718642865333,0.1629,66053.0,66052.0,0.454186]
[1718642865745,0.1629,66053.0,66049.0,0.308801]
[1718642865746,0.1629,66053.0,66049.0,0.006]
[1718642865948,0.302792,66052.0,66049.0,0.006]
[1718642866190,0.4542,66050.0,66049.0,0.006]
[1718642866389,0.1629,66053.0,66036.0,0.023]
[1718642866524,0.1629,66053.0,66046.0,0.01]
[1718642866726,0.302796,66051.0,66046.0,0.01]
[1718642866930,0.1629,66053.0,66036.0,0.123]
[1718642867152,0.1629,66053.0,66047.0,0.151406]
[1718642867325,0.1629,66053.0,66049.0,0.015]
[1718642867525,0.1629,66053.0,66049.0,0.317802]
[1718642867730,0.1629,66053.0,66049.0,0.015]
[1718642867935,0.1629,66053.0,66049.0,0.151402]
[1718642868156,0.1629,66053.0,66052.0,0.454186]
[1718642868366,0.1629,66053.0,66039.0,0.2109]
[1718642868570,0.1629,66053.0,66041.0,0.302841]
[1718642868571,0.302792,66052.0,66041.0,0.302841]
[1718642868816,0.314295,66053.0,66045.0,0.151411]
[1718642868953,0.151406,66048.0,66046.0,0.013]
[1718642869321,0.1629,66053.0,66038.0,0.302851]
[1718642869511,0.1629,66053.0,66042.0,0.151416]
[1718642869512,0.151403,66049.0,66042.0,0.151416]
[1718642869650,0.1514,66051.0,66044.0,0.151413]
[1718642870056,0.151397,66052.0,66049.0,0.008]
[1718642870260,0.1714,66050.0,66049.0,0.008]
[1718642870480,0.1714,66050.0,66036.0,0.1]
[1718642870481,0.0892,66050.0,66037.0,0.151428]
[1718642870707,0.0692,66050.0,66045.0,0.151411]
[1718642870904,0.0692,66050.0,66044.0,0.013]
[1718642871327,0.00754806,66049.0,66048.0,0.454215]
[1718642871535,0.00754806,66049.0,66038.0,0.2009]
[1718642871536,0.151411,66046.0,66037.0,0.302856]
[1718642871745,0.151411,66046.0,66033.0,0.3009]
[1718642871746,0.15141,66046.0,66038.0,0.151427]
[1718642872170,0.00756695,66045.0,66041.0,0.151419]
[1718642872368,0.0945,66049.0,66042.0,0.151416]
[1718642872570,0.0945,66049.0,66038.0,0.302851]
[1718642872770,0.00756695,66048.0,66042.0,0.151417]
[1718642872974,0.00756695,66048.0,66043.0,0.151415]
[1718642873190,0.00756695,66048.0,66037.0,0.014]
[1718642873461,0.00756695,66048.0,66040.0,0.302845]
[1718642873610,0.00756695,66048.0,66033.0,0.3009]
[1718642873829,0.30283,66044.0,66033.0,0.1]
[1718642874037,0.151416,66043.0,66042.0,0.014]
[1718642874236,0.46181595,66043.0,66042.0,0.014]
[1718642874465,0.15898295,66043.0,66035.0,0.151433]
[1718642874749,0.15898295,66043.0,66037.0,0.014]
[1718642874968,0.15898295,66043.0,66036.0,0.151432]
[1718642874969,0.00756695,66043.0,66036.0,0.302865]
[1718642875197,0.31039995,66043.0,66042.0,0.014]
[1718642875413,0.241216,66043.0,66042.0,0.014]
[1718642875641,0.09736695,66043.0,66033.0,0.014]
[1718642875848,0.151427,66039.0,66035.0,0.014]
[1718642876059,0.0742,66042.0,66035.0,0.014]
[1718642876274,0.00756695,66041.0,66036.0,0.151431]
[1718642876479,0.00756695,66041.0,66035.0,0.014]
[1718642876724,0.00756695,66041.0,66035.0,0.028]
[1718642877211,0.00756695,66041.0,66033.0,0.151437]
[1718642877416,0.151424,66040.0,66036.0,0.014]
[1718642877653,0.00756695,66041.0,66036.0,0.014]
[1718642877865,0.00749555,66039.0,66036.0,0.014]
[1718642878097,0.225619,66042.0,66034.0,0.151435]
[1718642878325,0.0946,66037.0,66035.0,0.014]
[1718642878542,0.0946,66037.0,66029.0,0.1]
[1718642878752,0.00749555,66036.0,66035.0,0.151434]
[1718642878990,0.0946,66037.0,66036.0,0.151432]
[1718642879430,0.10209555,66037.0,66029.0,0.1]
[1718642879681,0.0741,66033.0,66020.0,0.302938]
[1718642879898,0.0741,66033.0,66022.0,0.14868521]
[1718642880113,0.00741285,66032.0,66027.0,0.151451]
[1718642880334,0.00741285,66032.0,66024.0,0.302916]
[1718642880534,0.00741285,66032.0,66022.0,0.023]
[1718642880756,0.00741285,66032.0,66021.0,0.325933]
[1718642880953,0.0901,66029.0,66023.0,0.151462]
[1718642881167,0.0901,66029.0,66024.0,0.151458]
[1718642881376,0.224654,66027.0,66020.0,0.151468]
[1718642881579,0.224654,66027.0,66018.0,0.151472]
[1718642881580,0.151455,66026.0,66018.0,0.151472]
[1718642881781,0.0732,66027.0,66015.0,0.02]
[1718642881782,0.0732,66027.0,66016.0,0.302955]
[1718642881995,0.00737049,66025.0,66024.0,0.165458]
[1718642882201,0.0732,66027.0,66024.0,0.151458]
[1718642882403,0.0732,66027.0,66023.0,0.302923]
[1718642882404,0.00737049,66025.0,66023.0,0.151462]
[1718642882615,0.00737049,66025.0,66016.0,0.302955]
[1718642882616,0.00737049,66025.0,66016.0,0.151477]
[1718642882824,0.1025,66024.0,66017.0,0.1257037]
[1718642883014,0.10975205,66024.0,66023.0,0.151462]
[1718642883136,0.10975205,66024.0,66023.0,0.454386]
[1718642883366,0.10975205,66024.0,66023.0,0.151462]
[1718642883584,0.1025,66024.0,66023.0,0.151462]
[1718642883792,0.10975205,66024.0,66023.0,0.151462]
[1718642884030,0.1025,66024.0,66023.0,0.151462]
[1718642884396,0.1025,66024.0,66023.0,0.454386]
[1718642884607,0.1025,66029.0,66025.0,0.02]
[1718642884809,0.1025,66029.0,66028.0,0.757252]
[1718642885007,0.0712,66033.0,66032.0,0.757207]
[1718642885496,0.0712,66033.0,66032.0,1.06009]
[1718642886054,0.1737,66037.0,66032.0,0.302883]
[1718642886256,0.1737,66037.0,66036.0,0.757158]
[1718642886457,0.1737,66037.0,66036.0,1.060023]
[1718642887213,0.29057466,66048.0,66036.0,0.302861]
[1718642887428,0.1737,66047.0,66046.0,0.454228]
[1718642887635,0.1737,66047.0,66046.0,0.757047]
[1718642888041,0.1737,66047.0,66046.0,1.059866]
[1718642888662,0.1737,66047.0,66046.0,0.757047]
[1718642888813,0.1737,66047.0,66046.0,1.062866]
[1718642889815,0.00085,66060.0,66052.0,1.059768]
[1718642889816,0.1799,66053.0,66052.0,1.059768]
[1718642890269,0.1799,66053.0,66052.0,0.756977]
[1718642890477,0.1799,66053.0,66052.0,0.151395]
[1718642890678,0.1799,66053.0,66046.0,0.003]
[1718642890908,0.1799,66053.0,66052.0,0.454186]
[1718642891110,0.1799,66053.0,66052.0,0.756977]
[1718642891274,0.1799,66053.0,66052.0,0.455186]
[1718642891487,0.1799,66053.0,66052.0,0.012]
[1718642891840,0.1799,66053.0,66052.0,0.001]
[1718642892240,0.482687,66053.0,66052.0,0.001]
[1718642892438,0.956867,66053.0,66052.0,0.001]
[1718642892638,0.956867,66053.0,66037.0,0.302858]
[1718642892639,0.1874,66047.0,66037.0,0.151429]
[1718642892872,0.151412,66045.0,66037.0,0.151429]
[1718642893071,0.1874,66047.0,66036.0,0.000935]
[1718642893274,0.641621,66047.0,66046.0,0.014]
[1718642893477,0.302823,66046.0,66036.0,0.000935]
[1718642893677,0.338808,66047.0,66039.0,0.151424]
[1718642893906,0.1874,66047.0,66037.0,0.028]
[1718642894082,0.1874,66047.0,66037.0,0.014]
[1718642894299,0.2074,66047.0,66036.0,0.000935]
[1718642894505,0.151415,66044.0,66036.0,0.152366]
[1718642894743,0.0868,66043.0,66037.0,0.15143]
[1718642894918,0.0868,66043.0,66038.0,0.302852]
[1718642895122,0.0868,66043.0,66039.0,0.151424]
[1718642895537,0.1002,66042.0,66037.0,0.014]
[1718642895745,0.334827,66038.0,66037.0,0.014]
[1718642895993,0.637682,66038.0,66037.0,0.014]
[1718642896193,0.960537,66038.0,66037.0,0.014]
[1718642896402,1.263392,66038.0,66037.0,0.014]
[1718642896606,0.65769,66037.0,66036.0,0.014935]
[1718642896848,0.96055,66037.0,66036.0,0.014935]
[1718642897255,0.96055,66037.0,66036.0,0.000935]
[1718642897667,1.26341,66037.0,66036.0,0.000935]
[1718642897875,0.96055,66037.0,66036.0,0.000935]
[1718642898308,1.26341,66037.0,66036.0,0.003935]
[1718642899058,0.94055,66037.0,66036.0,0.003935]
[1718642899267,1.06055,66037.0,66036.0,0.003935]
[1718642899464,0.1002,66022.0,66007.0,0.0152]
[1718642899842,0.1002,66022.0,66013.0,0.151484]
[1718642899843,0.151467,66021.0,66013.0,0.151484]
[1718642900062,0.1002,66022.0,66011.0,0.302977]
[1718642900296,0.1002,66022.0,66015.0,0.151478]
[1718642900513,0.1002,66022.0,66021.0,0.151466]
[1718642900720,0.1002,66022.0,66021.0,0.757332]
[1718642900935,0.29057466,66034.0,66017.0,0.02]
[1718642900936,0.1002,66028.0,66017.0,0.02]
[1718642901149,0.1002,66028.0,66027.0,0.757265]
[1718642901360,0.1002,66028.0,66027.0,1.060171]
[1718642901573,0.1002,66028.0,66027.0,0.454359]
[1718642901983,0.1002,66028.0,66027.0,0.757265]
[1718642902190,0.1002,66028.0,66027.0,0.454359]
[1718642902366,0.1002,66028.0,66027.0,0.151453]
[1718642902791,0.1002,66028.0,66019.0,0.302939]
[1718642902998,0.1002,66028.0,66019.0,0.15147]
[1718642902999,0.001,66022.0,66019.0,0.15147]
[1718642903191,0.001,66022.0,66015.0,0.330959]
[1718642903353,0.15146,66024.0,66017.0,0.151475]
[1718642903548,0.302913,66026.0,66015.0,0.151478]
[1718642903753,0.302913,66026.0,66001.0,0.503924]
[1718642903754,0.1786,66021.0,66006.0,0.01]
[1718642903983,0.1786,66021.0,66001.0,0.1802]
[1718642903984,0.151479,66016.0,66008.0,0.151495]
[1718642904204,0.151474,66018.0,66012.0,0.151487]
[1718642904375,0.31014418,66020.0,66012.0,0.151487]
[1718642904376,0.00715088,66015.0,66012.0,0.151487]
[1718642904735,0.1028,66010.0,66004.0,0.151504]
[1718642904860,0.1028,66010.0,66004.0,0.303009]
[1718642905058,0.09138407,66009.0,66000.0,0.303028]
[1718642905293,0.09138407,66009.0,66000.0,0.151514]
[1718642905294,0.1515,66007.0,66000.0,0.151514]
[1718642905506,0.00692996,66006.0,66004.0,0.151505]
[1718642905706,0.00692996,66006.0,65996.0,0.303045]
[1718642906072,0.0843,66009.0,66005.0,0.151502]
[1718642906279,0.00689603,66005.0,65998.0,0.303035]
[1718642906480,0.38729,66009.0,65992.0,0.0835]
[1718642906481,0.38729,66009.0,66000.0,0.303029]
[1718642906704,0.0843,66009.0,66002.0,0.151509]
[1718642906919,0.0843,66009.0,66004.0,0.014]
[1718642906920,0.02,66005.0,66004.0,0.014]
[1718642907122,0.02,66004.0,65988.0,0.303082]
[1718642907238,0.151512,66002.0,65994.0,0.151526]
[1718642907438,0.151508,66003.0,65996.0,0.151523]
[1718642907641,0.00689356,66001.0,65996.0,0.151523]
[1718642907853,0.1004,66005.0,65997.0,0.303042]
[1718642907854,0.0804,66005.0,65997.0,0.303042]
[1718642908065,0.00689356,66004.0,66003.0,0.454524]
[1718642908268,0.00689356,66004.0,66003.0,0.75754]
[1718642908505,0.1,66014.0,66010.0,0.15149]
[1718642908727,0.1,66014.0,66002.0,0.014]
[1718642908728,0.00681732,66013.0,66002.0,0.014]
[1718642908930,0.151496,66008.0,66002.0,0.165509]
[1718642909138,0.151488,66012.0,66006.0,0.151499]
[1718642909343,0.151488,66012.0,66005.0,0.151502]
[1718642909344,0.454464,66012.0,66005.0,0.151502]